fUST/lending_fUST_20241217
["ID","MTS","AMOUNT","RATE_DAILY","PERIOD"]
[345592670,1734373847428,-500.0,0.00027397,7]
[345592671,1734373847438,-501.72185129,0.00027397,7]
[345592672,1734373847450,-500.0,0.00027397,7]
[345592673,1734373847460,-797.18,0.00027397,7]
[345592674,1734373847470,-500.0,0.00027397,7]
[345592675,1734373847483,-500.0,0.00027397,7]
[345592676,1734373847493,-500.0,0.00027397,7]
[345592677,1734373847504,-500.0,0.00027397,7]
[345592678,1734373847519,-539.10103757,0.00027397,7]
[345592679,1734373847529,-491.52401525,0.00027397,7]
[345592680,1734373847538,-500.0,0.00027397,7]
[345592681,1734373847548,-500.0,0.00027397,7]
[345592682,1734373847559,-500.0,0.00027397,7]
[345592683,1734373847568,-502.53068108,0.00027397,7]
[345592684,1734373847578,-501.2055227,0.00027397,7]
[345592685,1734373847589,-500.0,0.00027397,7]
[345592686,1734373847599,-500.0,0.00027397,7]
[345592687,1734373847608,-500.0,0.00027397,7]
[345592688,1734373847618,-500.0,0.00027397,7]
[345592689,1734373847629,-500.0,0.00027397,7]
[345592690,1734373847638,-500.0,0.00027397,7]
[345592691,1734373847648,-500.0,0.00027397,7]
[345592692,1734373847658,-500.0,0.00027397,7]
[345592693,1734373847668,-1048.19,0.00027397,7]
[345592694,1734373847677,-500.0,0.00027397,7]
[345592695,1734373847687,-488.87686724,0.00027397,7]
[345592696,1734373847701,-503.62184828,0.00027397,7]
[345592697,1734373847710,-500.0,0.00027397,7]
[345592698,1734373847720,-398.38738253,0.00027397,7]
[345592699,1734373847729,-500.0,0.00027397,7]
[345592700,1734373847739,-500.0,0.00027397,7]
[345592701,1734373847750,-16430.12,0.00027397,7]
[345592702,1734373847759,-507.95315676,0.00027397,7]
[345592703,1734373847768,-500.0,0.00027397,7]
[345592704,1734373847785,-500.0,0.00027397,7]
[345592705,1734373847794,-501.84630422,0.00027397,7]
[345592706,1734373847804,-500.0,0.00027397,7]
[345592707,1734373847814,-500.0,0.00027397,7]
[345592708,1734373847824,-500.0,0.00027397,7]
[345592709,1734373847835,-505.04767068,0.00027397,7]
[345592710,1734373847844,-425.22870184,0.00027397,7]
[345592711,1734373847854,-500.0,0.00027397,7]
[345592712,1734373847864,-500.0,0.00027397,7]
[345592713,1734373847874,-618.98675115,0.00027397,7]
[345592714,1734373847884,-500.0,0.00027397,7]
[345592715,1734373847895,-500.0,0.00027397,7]
[345592716,1734373847905,-500.0,0.00027397,7]
[345592717,1734373847915,-1967.34,0.00027397,7]
[345592718,1734373847924,-500.0,0.00027397,7]
[345592719,1734373847934,-2609.43,0.00027397,7]
[345592720,1734373847947,-196.20937865,0.00027397,7]
[345592721,1734373847956,-500.0,0.00027397,7]
[345592722,1734373847966,-500.0,0.00027397,7]
[345592723,1734373847975,-1078.98,0.00027397,7]
[345592724,1734373847985,-500.0,0.00027397,7]
[345592725,1734373847996,-500.0,0.00027397,7]
[345592726,1734373848006,-500.0,0.00027397,7]
[345592727,1734373848016,-500.0,0.00027397,7]
[345592728,1734373848026,-503.98940354,0.00027397,7]
[345592729,1734373848037,-503.5881907,0.00027397,7]
[345592730,1734373848047,-3929.87,0.00027397,5]
[345592731,1734373848057,-1884.79,0.00027397,7]
[345592732,1734373848067,-502.65494426,0.00027397,7]
[345592733,1734373848077,-509.93032164,0.00027397,7]
[345592734,1734373848087,-500.0,0.00027397,7]
[345592735,1734373848097,-500.0,0.00027397,7]
[345592736,1734373848107,-1246.41,0.00027397,7]
[345592737,1734373848117,-503.62042531,0.00027397,7]
[345592738,1734373848127,-472.54972934,0.00027397,7]
[345592739,1734373848138,-500.0,0.00027397,7]
[345592740,1734373848148,-500.0,0.00027397,7]
[345592741,1734373848159,-500.0,0.00027397,7]
[345592742,1734373848170,-9596.26,0.00027397,7]
[345592743,1734373848180,-502.37854492,0.00027397,7]
[345592744,1734373848190,-500.47449633,0.00027397,7]
[345592745,1734373848204,-516.43,0.00027397,7]
[345592746,1734373848214,-500.0,0.00027397,7]
[345592747,1734373848224,-500.0,0.00027397,7]
[345592748,1734373848234,-654.36,0.00027397,7]
[345592749,1734373848244,-500.0,0.00027397,7]
[345592750,1734373848254,-506.22579799,0.00027397,7]
[345592751,1734373848263,-8176.81,0.00027397,7]
[345592752,1734373848274,-500.0,0.00027397,7]
[345592753,1734373848284,-502.73270547,0.00027397,7]
[345592754,1734373848293,-481.05044019,0.00027397,7]
[345592755,1734373848303,-507.20653829,0.00027397,7]
[345592756,1734373848312,-500.0,0.00027397,7]
[345592757,1734373848322,-500.0,0.00027397,7]
[345592758,1734373848331,-502.6579722,0.00027397,7]
[345592759,1734373848341,-500.0,0.00027397,7]
[345592760,1734373848351,-500.0,0.00027397,7]
[345592761,1734373848360,-500.0,0.00027397,2]
[345592762,1734373848371,-11026.87,0.00027397,7]
[345592763,1734373848380,-500.0,0.00027397,7]
[345592764,1734373848391,-500.0,0.00027397,7]
[345592765,1734373848401,-500.0,0.00027397,7]
[345592766,1734373848411,-500.0,0.00027397,7]
[345592767,1734373848420,-49791.75,0.00027397,7]
[345592768,1734373848431,-500.0,0.00027397,7]
[345592769,1734373848449,-197.64,0.00027397,7]
[345592770,1734373848458,-566.21,0.00027397,2]
[345592771,1734373848468,-507.5613979,0.00027397,7]
[345592772,1734373848478,-500.0,0.00027397,7]
[345592773,1734373848488,-500.0,0.00027397,7]
[345592774,1734373848498,-557.94543552,0.00027397,7]
[345592775,1734373848510,-500.0,0.00027397,7]
[345592776,1734373848521,-500.0,0.00027397,7]
[345592777,1734373848532,-500.0,0.00027397,7]
[345592778,1734373848543,-5132.11,0.00027397,7]
[345592779,1734373848554,-500.0,0.00027397,7]
[345592780,1734373848564,-520.07,0.00027397,7]
[345592781,1734373848573,-500.0,0.00027397,7]
[345592782,1734373848584,-500.0,0.00027397,7]
[345592783,1734373848594,-503.28827737,0.00027397,7]
[345592784,1734373848604,-500.0,0.00027397,7]
[345592785,1734373848614,-504.06712699,0.00027397,7]
[345592786,1734373848623,-500.0,0.00027397,7]
[345592787,1734373848634,-500.0,0.00027397,7]
[345592788,1734373848644,-500.0,0.00027397,7]
[345592789,1734373848654,-500.0,0.00027397,7]
[345592790,1734373848665,-500.0,0.00027397,7]
[345592791,1734373848675,-500.0,0.00027397,7]
[345592792,1734373848687,-500.0,0.00027397,7]
[345592793,1734373848704,-506.19097359,0.00027397,7]
[345592794,1734373848714,-1663.69,0.00027397,7]
[345592795,1734373848723,-295.79150136,0.00027397,7]
[345592796,1734373848733,-2646.59,0.00027397,7]
[345592797,1734373848743,-500.0,0.00027397,7]
[345592798,1734373848892,-500.0,0.00027397,7]
[345592799,1734373848903,-500.0,0.00027397,7]
[345592800,1734373848914,-524.48,0.00027397,7]
[345592801,1734373848924,-500.0,0.00027397,7]
[345592802,1734373848935,-504.26826988,0.00027397,7]
[345592803,1734373848949,-500.0,0.00027397,7]
[345592804,1734373848960,-500.0,0.00027397,7]
[345592805,1734373848970,-941.13,0.00027397,7]
[345592806,1734373848981,-505.45165393,0.00027397,7]
[345592807,1734373848992,-500.0,0.00027397,7]
[345592808,1734373849002,-2823.16,0.00027397,7]
[345592809,1734373849012,-500.0,0.00027397,7]
[345592810,1734373849023,-500.0,0.00027397,7]
[345592811,1734373849033,-1610.16,0.00027397,7]
[345592812,1734373849043,-700.22,0.00027397,7]
[345592813,1734373849052,-500.0,0.00027397,7]
[345592814,1734373849062,-501.44250337,0.00027397,7]
[345592815,1734373849072,-500.83809177,0.00027397,7]
[345592816,1734373849082,-500.0,0.00027397,7]
[345592817,1734373849093,-273.59105054,0.00027397,2]
[345592818,1734373849103,-500.0,0.00027397,7]
[345592819,1734373849113,-500.0,0.00027397,7]
[345592820,1734373849122,-500.0,0.00027397,7]
[345592821,1734373849133,-505.64751995,0.00027397,7]
[345592822,1734373849143,-500.0,0.00027397,7]
[345592823,1734373849153,-203.05110222,0.00027397,7]
[345592824,1734373849163,-2623.08,0.00027397,7]
[345592825,1734373849173,-500.0,0.00027397,7]
[345592826,1734373849185,-500.0,0.00027397,7]
[345592827,1734373849198,-500.0,0.00027397,7]
[345592828,1734373849209,-500.0,0.00027397,7]
[345592829,1734373849220,-500.0,0.00027397,7]
[345592830,1734373849231,-500.0,0.00027397,7]
[345592831,1734373849241,-500.0,0.00027397,7]
[345592832,1734373849252,-500.0,0.00027397,7]
[345592833,1734373849262,-500.0,0.00027397,7]
[345592834,1734373849272,-500.0,0.00027397,7]
[345592835,1734373849283,-500.0,0.00027397,7]
[345592836,1734373849293,-500.0,0.00027397,7]
[345592837,1734373849303,-500.0,0.00027397,7]
[345592838,1734373849313,-500.0,0.00027397,7]
[345592839,1734373849323,-500.0,0.00027397,7]
[345592840,1734373849333,-500.0,0.00027397,7]
[345592841,1734373849343,-500.0,0.00027397,7]
[345592842,1734373849353,-500.0,0.00027397,7]
[345592843,1734373849363,-4957.14,0.00027397,7]
[345592844,1734373849373,-500.0,0.00027397,7]
[345592845,1734373849383,-647.74424195,0.00027397,7]
[345592846,1734373849394,-500.0,0.00027397,7]
[345592847,1734373849404,-500.0,0.00027397,7]
[345592848,1734373849414,-500.0,0.00027397,7]
[345592849,1734373849423,-942.66,0.00027397,7]
[345592850,1734373849433,-800.65,0.00027397,7]
[345592851,1734373849445,-500.0,0.00027397,7]
[345592852,1734373849455,-500.0,0.00027397,7]
[345592853,1734373849465,-2688.22,0.00027397,7]
[345592854,1734373849475,-3274.75,0.00027397,7]
[345592855,1734373849485,-500.0,0.00027397,7]
[345592856,1734373849496,-790.52,0.00027397,7]
[345592857,1734373849511,-500.0,0.00027397,7]
[345592858,1734373849522,-500.0,0.00027397,7]
[345592859,1734373849532,-810.73,0.00027397,7]
[345592860,1734373849543,-2340.34,0.00027397,7]
[345592861,1734373849553,-553.7,0.00027397,7]
[345592862,1734373849563,-500.0,0.00027397,7]
[345592863,1734373849573,-500.0,0.00027397,7]
[345592864,1734373849585,-2321.11,0.00027397,7]
[345592865,1734373849596,-1581.38,0.00027397,7]
[345592866,1734373849606,-500.0,0.00027397,7]
[345592867,1734373849615,-1317.62,0.00027397,7]
[345592868,1734373849624,-500.0,0.00027397,7]
[345592869,1734373849634,-500.0,0.00027397,7]
[345592870,1734373849643,-984.71,0.00027397,7]
[345592871,1734373849653,-299.00017533,0.00027397,7]
[345592872,1734373849663,-500.0,0.00027397,7]
[345592873,1734373849672,-505.61,0.00027397,7]
[345592874,1734373849682,-500.0,0.00027397,7]
[345592875,1734373849692,-167.20725077,0.00027397,7]
[345592876,1734373849706,-500.0,0.00027397,7]
[345592877,1734373849716,-500.0,0.00027397,2]
[345592878,1734373849727,-520.87,0.00027397,7]
[345592879,1734373849737,-1165.57,0.00027397,7]
[345592880,1734373849750,-500.38492864,0.00027397,2]
[345592881,1734373849761,-696.46,0.00027397,7]
[345592882,1734373849770,-850.46,0.00027397,7]
[345592883,1734373849779,-500.0,0.00027397,7]
[345592884,1734373849790,-5182.0944052,0.00027397,2]
[345592885,1734373849799,-500.13863086,0.00027472,8]
[345592886,1734373849808,-1280.8908997,0.00027481,2]
[345592887,1734373849818,-420.0,0.00027499,2]
[345592888,1734373849827,-24165.0,0.000275,120]
[345592889,1734373849837,-6288.82381808,0.000275,2]
[345592890,1734373849847,-666.0,0.0002757,2]
[345592891,1734373849856,-626.74273389,0.00027571,2]
[345592892,1734373849866,-194.412945,0.00027659,2]
[345592893,1734373849876,-500.0,0.00027671,7]
[345592894,1734373849885,-500.0,0.00027671,7]
[345592895,1734373849895,-500.0,0.00027671,7]
[345592896,1734373849905,-500.0,0.00027671,7]
[345592897,1734373849915,-500.0,0.00027671,7]
[345592898,1734373849925,-500.0,0.00027671,7]
[345592899,1734373849934,-198.03512168,0.00027671,7]
[345592900,1734373849947,-500.0,0.00027671,7]
[345592901,1734373849957,-500.0,0.00027671,7]
[345592902,1734373849967,-508.23905114,0.00027671,7]
[345592903,1734373849976,-500.0,0.00027671,7]
[345592904,1734373849986,-500.0,0.00027671,7]
[345592905,1734373849996,-500.0,0.00027671,7]
[345592906,1734373850006,-500.0,0.00027671,7]
[345592907,1734373850016,-781.2,0.00027671,7]
[345592908,1734373850026,-500.0,0.00027671,7]
[345592909,1734373850036,-500.0,0.00027671,7]
[345592910,1734373850046,-652.55,0.00027671,7]
[345592911,1734373850056,-500.0,0.00027671,7]
[345592912,1734373850066,-500.0,0.00027671,7]
[345592913,1734373850076,-500.0,0.00027671,7]
[345592914,1734373850086,-500.0,0.00027671,7]
[345592915,1734373850096,-500.0,0.00027671,7]
[345592916,1734373850106,-500.0,0.00027671,7]
[345592917,1734373850116,-500.0,0.00027671,7]
[345592918,1734373850125,-504.23487329,0.00027671,7]
[345592919,1734373850134,-203.57878873,0.00027671,7]
[345592920,1734373850143,-1942.51,0.00027671,7]
[345592921,1734373850153,-500.0,0.00027671,7]
[345592922,1734373850162,-549.01,0.00027671,7]
[345592923,1734373850172,-738.47,0.00027671,7]
[345592924,1734373850182,-500.0,0.00027671,7]
[345592925,1734373850191,-537.64131279,0.00027671,7]
[345592926,1734373850205,-500.0,0.00027671,7]
[345592927,1734373850215,-500.0,0.00027671,7]
[345592928,1734373850224,-500.0,0.00027671,7]
[345592929,1734373850234,-508.1181696,0.00027671,7]
[345592930,1734373850243,-500.0,0.00027671,7]
[345592931,1734373850252,-500.0,0.00027671,7]
[345592932,1734373850262,-683.4,0.00027671,7]
[345592933,1734373850271,-500.0,0.00027671,7]
[345592934,1734373850281,-646.01574264,0.00027671,7]
[345592935,1734373850291,-965.75,0.00027671,7]
[345592936,1734373850300,-500.0,0.00027671,7]
[345592937,1734373850310,-2608.94,0.00027671,7]
[345592938,1734373850319,-615.23,0.00027671,7]
[345592939,1734373850328,-864.53,0.00027671,7]
[345592940,1734373850338,-505.19491867,0.00027671,7]
[345592941,1734373850347,-500.0,0.00027671,7]
[345592942,1734373850357,-500.0,0.00027671,7]
[345592943,1734373850366,-500.0,0.00027671,7]
[345592944,1734373850375,-209.87361148,0.00027671,7]
[345592945,1734373850385,-938.96,0.00027671,7]
[345592946,1734373850394,-168.02,0.00027671,7]
[345592947,1734373850404,-563.36,0.00027671,7]
[345592948,1734373850413,-500.0,0.00027671,7]
[345592949,1734373850422,-500.0,0.00027671,7]
[345592950,1734373850431,-500.0,0.00027671,7]
[345592951,1734373850441,-449.79597217,0.00027671,7]
[345592952,1734373850460,-271.07121634,0.00027671,7]
[345592953,1734373850470,-500.0,0.00027671,7]
[345592954,1734373850480,-1710.74,0.00027671,7]
[345592955,1734373850490,-500.0,0.00027671,7]
[345592956,1734373850499,-500.0,0.00027671,7]
[345592957,1734373850509,-500.0,0.00027671,7]
[345592958,1734373850520,-855.63,0.00027671,7]
[345592959,1734373850530,-500.0,0.00027671,7]
[345592960,1734373850539,-500.0,0.00027671,7]
[345592961,1734373850550,-500.0,0.00027671,7]
[345592962,1734373850560,-2025.4,0.00027671,2]
[345592963,1734373850570,-500.0,0.00027671,7]
[345592964,1734373850580,-502.63779928,0.00027671,7]
[345592965,1734373850600,-1166.87,0.00027671,7]
[345592966,1734373850611,-500.0,0.00027671,7]
[345592967,1734373850622,-500.0,0.00027671,7]
[345592968,1734373850633,-500.0,0.00027671,7]
[345592969,1734373850643,-835.88,0.00027671,7]
[345592970,1734373850654,-500.0,0.00027671,7]
[345592971,1734373850664,-1056.72,0.00027671,7]
[345592972,1734373850673,-483.19518879,0.00027671,7]
[345592973,1734373850683,-500.0,0.00027671,7]
[345592974,1734373850692,-500.0,0.00027671,7]
[345592975,1734373850706,-809.72,0.00027671,7]
[345592976,1734373850715,-502.63085816,0.00027671,7]
[345592977,1734373850726,-515.27627266,0.00027671,7]
[345592978,1734373850738,-502.51580994,0.00027671,7]
[345592979,1734373850748,-500.0,0.00027671,7]
[345592980,1734373850757,-500.0,0.00027671,7]
[345592981,1734373850766,-500.0,0.00027671,7]
[345592982,1734373850775,-500.0,0.00027671,7]
[345592983,1734373850784,-2441.19,0.00027671,7]
[345592984,1734373850794,-500.0,0.00027671,7]
[345592985,1734373850803,-1343.92,0.00027671,7]
[345592986,1734373850812,-503.18730105,0.00027671,7]
[345592987,1734373850821,-500.0,0.00027671,7]
[345592988,1734373850831,-500.0,0.00027671,7]
[345592989,1734373850840,-187.36249707,0.00027671,7]
[345592990,1734373850850,-500.0,0.00027671,7]
[345592991,1734373850859,-1000.0,0.00027671,2]
[345592992,1734373850869,-219.14568439,0.00027671,7]
[345592993,1734373850878,-500.0,0.00027671,7]
[345592994,1734373850888,-506.29351244,0.00027671,7]
[345592995,1734373850897,-503.9768528,0.00027671,7]
[345592996,1734373850907,-500.0,0.00027671,7]
[345592997,1734373850917,-500.0,0.00027671,7]
[345592998,1734373850927,-500.0,0.00027671,7]
[345592999,1734373850936,-500.0,0.00027671,7]
[345593000,1734373850949,-503.79040515,0.00027671,7]
[345593001,1734373850959,-500.0,0.00027671,7]
[345593002,1734373850969,-669.81,0.00027671,7]
[345593003,1734373850979,-1088.46,0.00027671,7]
[345593004,1734373850989,-500.0,0.00027671,7]
[345593005,1734373850999,-500.0,0.00027671,7]
[345593006,1734373851008,-579.63,0.00027671,7]
[345593007,1734373851019,-500.0,0.00027671,7]
[345593008,1734373851029,-1538.31,0.00027671,7]
[345593009,1734373851039,-308.60991339,0.00027671,7]
[345593010,1734373851049,-504.00559524,0.00027671,7]
[345593011,1734373851058,-740.26,0.00027671,7]
[345593012,1734373851068,-500.0,0.00027671,7]
[345593013,1734373851077,-500.0,0.00027671,7]
[345593014,1734373851087,-500.0,0.00027671,7]
[345593015,1734373851097,-561.74281175,0.00027671,7]
[345593016,1734373851106,-500.0,0.00027671,7]
[345593017,1734373851116,-500.0,0.00027671,7]
[345593018,1734373851126,-500.0,0.00027671,2]
[345593019,1734373851136,-304.90779867,0.00027671,7]
[345593020,1734373851145,-1022.87,0.00027671,7]
[345593021,1734373851155,-222.05,0.00027671,7]
[345593022,1734373851165,-500.0,0.00027671,7]
[345593023,1734373851175,-797.18,0.00027671,7]
[345593024,1734373851185,-500.0,0.00027671,7]
[345593025,1734373851197,-500.0,0.00027671,7]
[345593026,1734373851209,-500.0,0.00027671,7]
[345593027,1734373851218,-504.10490195,0.00027671,7]
[345593028,1734373851228,-256.00930686,0.00027671,7]
[345593029,1734373851237,-500.0,0.00027671,7]
[345593030,1734373851249,-506.95689041,0.00027671,7]
[345593031,1734373851259,-500.0,0.00027671,7]
[345593032,1734373851268,-519.72591263,0.00027671,7]
[345593033,1734373851278,-500.0,0.00027671,7]
[345593034,1734373851287,-500.0,0.00027671,7]
[345593035,1734373851297,-500.0,0.00027671,7]
[345593036,1734373851306,-500.0,0.00027671,7]
[345593037,1734373851316,-500.0,0.00027671,7]
[345593038,1734373851326,-1048.19,0.00027671,7]
[345593039,1734373851336,-500.0,0.00027671,7]
[345593040,1734373851346,-500.0,0.00027671,7]
[345593041,1734373851356,-500.0,0.00027671,7]
[345593042,1734373851366,-16430.12,0.00027671,7]
[345593043,1734373851376,-500.0,0.00027671,7]
[345593044,1734373851386,-500.0,0.00027671,7]
[345593045,1734373851397,-500.0,0.00027671,7]
[345593046,1734373851407,-500.0,0.00027671,7]
[345593047,1734373851417,-500.0,0.00027671,7]
[345593048,1734373851427,-500.0,0.00027671,7]
[345593049,1734373851439,-502.7848892,0.00027671,7]
[345593050,1734373851453,-1967.34,0.00027671,7]
[345593051,1734373851462,-500.0,0.00027671,7]
[345593052,1734373851472,-2609.43,0.00027671,7]
[345593053,1734373851482,-374.76403359,0.00027671,7]
[345593054,1734373851504,-500.0,0.00027671,7]
[345593055,1734373851518,-1078.98,0.00027671,7]
[345593056,1734373851528,-507.99767355,0.00027671,7]
[345593057,1734373851538,-502.8101452,0.00027671,7]
[345593058,1734373851549,-3929.87,0.00027671,5]
[345593059,1734373851559,-1884.79,0.00027671,7]
[345593060,1734373851569,-500.0,0.00027671,7]
[345593061,1734373851579,-500.0,0.00027671,7]
[345593062,1734373851589,-1246.41,0.00027671,7]
[345593063,1734373851599,-509.8362244,0.00027671,7]
[345593064,1734373851801,-500.0,0.00027671,7]
[345593065,1734373851811,-9596.26,0.00027671,7]
[345593066,1734373851822,-516.43,0.00027671,7]
[345593067,1734373851832,-500.0,0.00027671,7]
[345593068,1734373851841,-500.0,0.00027671,7]
[345593069,1734373851851,-654.36,0.00027671,7]
[345593070,1734373851862,-500.0,0.00027671,7]
[345593071,1734373851871,-8176.81,0.00027671,7]
[345593072,1734373851881,-500.0,0.00027671,7]
[345593073,1734373851891,-500.0,0.00027671,7]
[345593074,1734373851900,-500.0,0.00027671,7]
[345593075,1734373851909,-500.0,0.00027671,7]
[345593076,1734373851919,-500.0,0.00027671,2]
[345593077,1734373851929,-11026.87,0.00027671,7]
[345593078,1734373851939,-500.0,0.00027671,7]
[345593079,1734373851950,-500.0,0.00027671,7]
[345593080,1734373851960,-500.0,0.00027671,7]
[345593081,1734373851969,-49791.75,0.00027671,7]
[345593082,1734373851978,-500.0,0.00027671,7]
[345593083,1734373851988,-566.21,0.00027671,2]
[345593084,1734373851998,-452.35247749,0.00027671,7]
[345593085,1734373852008,-500.0,0.00027671,7]
[345593086,1734373852019,-500.0,0.00027671,7]
[345593087,1734373852029,-5132.11,0.00027671,7]
[345593088,1734373852039,-385.31930586,0.00027671,7]
[345593089,1734373852049,-520.07,0.00027671,7]
[345593090,1734373852059,-360.26272381,0.00027671,7]
[345593091,1734373852069,-500.0,0.00027671,7]
[345593092,1734373852079,-500.0,0.00027671,7]
[345593093,1734373852089,-500.0,0.00027671,7]
[345593094,1734373852099,-500.0,0.00027671,7]
[345593095,1734373852108,-500.0,0.00027671,7]
[345593096,1734373852118,-1663.69,0.00027671,7]
[345593097,1734373852128,-2646.59,0.00027671,7]
[345593098,1734373852138,-500.0,0.00027671,7]
[345593099,1734373852148,-500.0,0.00027671,7]
[345593100,1734373852160,-500.0,0.00027671,7]
[345593101,1734373852170,-524.48,0.00027671,7]
[345593102,1734373852179,-500.0,0.00027671,7]
[345593103,1734373852189,-941.13,0.00027671,7]
[345593104,1734373852204,-510.16755419,0.00027671,7]
[345593105,1734373852215,-2823.16,0.00027671,7]
[345593106,1734373852225,-500.0,0.00027671,7]
[345593107,1734373852236,-500.0,0.00027671,7]
[345593108,1734373852245,-1610.16,0.00027671,7]
[345593109,1734373852255,-700.22,0.00027671,7]
[345593110,1734373852265,-500.0,0.00027671,7]
[345593111,1734373852275,-500.0,0.00027671,7]
[345593112,1734373852285,-398.28201029,0.00027671,7]
[345593113,1734373852295,-2623.08,0.00027671,7]
[345593114,1734373852305,-500.0,0.00027671,7]
[345593115,1734373852315,-4957.14,0.00027671,7]
[345593116,1734373852325,-500.0,0.00027671,7]
[345593117,1734373852336,-942.66,0.00027671,7]
[345593118,1734373852346,-800.65,0.00027671,7]
[345593119,1734373852355,-500.0,0.00027671,7]
[345593120,1734373852365,-500.0,0.00027671,7]
[345593121,1734373852375,-2688.22,0.00027671,7]
[345593122,1734373852384,-3274.75,0.00027671,7]
[345593123,1734373852394,-790.52,0.00027671,7]
[345593124,1734373852402,-624.13126261,0.00027671,7]
[345593125,1734373852412,-500.0,0.00027671,7]
[345593126,1734373852422,-500.0,0.00027671,7]
[345593127,1734373852431,-810.73,0.00027671,7]
[345593128,1734373852441,-2340.34,0.00027671,7]
[345593129,1734373852454,-553.7,0.00027671,7]
[345593130,1734373852463,-500.0,0.00027671,7]
[345593131,1734373852473,-500.0,0.00027671,7]
[345593132,1734373852482,-2321.11,0.00027671,7]
[345593133,1734373852492,-1581.38,0.00027671,7]
[345593134,1734373852506,-500.0,0.00027671,7]
[345593135,1734373852516,-1317.62,0.00027671,7]
[345593136,1734373852525,-500.0,0.00027671,7]
[345593137,1734373852535,-984.71,0.00027671,7]
[345593138,1734373852545,-505.73043511,0.00027671,7]
[345593139,1734373852555,-505.61,0.00027671,7]
[345593140,1734373852565,-500.0,0.00027671,7]
[345593141,1734373852576,-500.0,0.00027671,7]
[345593142,1734373852588,-1165.57,0.00027671,7]
[345593143,1734373852599,-520.87,0.00027671,7]
[345593144,1734373852608,-696.46,0.00027671,7]
[345593145,1734373852618,-850.46,0.00027671,7]
[345593146,1734373852627,-476.05391448,0.00027671,7]
[345593147,1734373852637,-502.13809932,0.00027673,5]
[345593148,1734373852647,-503.53709818,0.00027673,5]
[345593149,1734373852656,-2479.99,0.000277,2]
[345593150,1734373852666,-151.0,0.000277,16]
[345593151,1734373852677,-549.3033265,0.00027719,4]
[345593152,1734373852686,-157.82033489,0.00027753,2]
[345593153,1734373852697,-2422.33901988,0.00027792,2]
[345593154,1734373852710,-626.7427338,0.00027795,2]
[345593155,1734373852720,-151.0,0.000278,15]
[345593156,1734373852733,-151.0,0.000279,13]
[345593157,1734373852742,-151.0,0.000279,13]
[345593158,1734373852751,-500.0,0.00027921,5]
[345593159,1734373852761,-1597.2092,0.0002794,15]
[345593160,1734373852771,-500.0,0.00027945,7]
[345593161,1734373852782,-500.0,0.00027945,7]
[345593162,1734373852792,-500.0,0.00027945,7]
[345593163,1734373852801,-500.0,0.00027945,7]
[345593164,1734373852811,-500.0,0.00027945,7]
[345593165,1734373852821,-500.0,0.00027945,7]
[345593166,1734373852831,-500.0,0.00027945,7]
[345593167,1734373852841,-500.0,0.00027945,7]
[345593168,1734373852850,-500.0,0.00027945,7]
[345593169,1734373852859,-500.0,0.00027945,7]